fUST/lending_fUST_20250803
["ID","MTS","AMOUNT","RATE_DAILY","PERIOD"]
[376992991,1754193042053,-151.0,0.00028084,7]
[376992992,1754193042062,-151.0,0.00028084,7]
[376992993,1754193042072,-151.0,0.00028084,7]
[376992994,1754193042081,-151.0,0.00028084,7]
[376992995,1754193042091,-151.0,0.00028084,7]
[376992996,1754193042100,-460.0,0.00028084,10]
[376992997,1754193042109,-460.0,0.00028084,10]
[376992998,1754193042118,-460.0,0.00028084,10]
[376992999,1754193042128,-460.0,0.00028084,10]
[376993000,1754193042137,-460.0,0.00028084,10]
[376993001,1754193042147,-460.0,0.00028084,10]
[376993002,1754193042156,-306.87,0.00028084,10]
[376993003,1754193042166,-151.0,0.00028084,7]
[376993004,1754193042175,-151.0,0.00028084,7]
[376993005,1754193042185,-152.357585,0.00028084,7]
[376993006,1754193042195,-178.298816,0.00028084,7]
[376993007,1754193042204,-178.298816,0.00028084,7]
[376993008,1754193042213,-178.298816,0.00028084,7]
[376993009,1754193042223,-178.298816,0.00028084,7]
[376993011,1754193042233,-178.298816,0.00028084,7]
[376993013,1754193042242,-178.298816,0.00028084,7]
[376993015,1754193042252,-178.298816,0.00028084,7]
[376993017,1754193042261,-178.298816,0.00028084,7]
[376993019,1754193042271,-151.0,0.00028084,7]
[376993021,1754193042280,-178.298816,0.00028084,7]
[376993023,1754193042290,-151.0,0.00028084,7]
[376993025,1754193042299,-178.298816,0.00028084,7]
[376993027,1754193042309,-151.0,0.00028084,7]
[376993029,1754193042318,-178.298816,0.00028084,7]
[376993031,1754193042328,-151.0,0.00028084,7]
[376993033,1754193042339,-178.298816,0.00028084,7]
[376993035,1754193042348,-151.0,0.00028084,7]
[376993037,1754193042358,-178.298816,0.00028084,7]
[376993039,1754193042367,-151.0,0.00028084,7]
[376993041,1754193042377,-178.298816,0.00028084,7]
[376993043,1754193042387,-178.558029,0.00028084,7]
[376993045,1754193042399,-178.298816,0.00028084,7]
[376993047,1754193042408,-178.298816,0.00028084,7]
[376993049,1754193042418,-178.298816,0.00028084,7]
[376993051,1754193042427,-178.298816,0.00028084,7]
[376993053,1754193042437,-178.298816,0.00028084,7]
[376993055,1754193042446,-178.298822,0.00028084,7]
[376993057,1754193042456,-152.940225,0.00028084,7]
[376993059,1754193042466,-460.0,0.00028084,10]
[376993061,1754193042476,-460.0,0.00028084,10]
[376993064,1754193042486,-460.0,0.00028084,10]
[376993065,1754193042496,-460.0,0.00028084,10]
[376993067,1754193042505,-460.0,0.00028084,10]
[376993069,1754193042515,-460.0,0.00028084,10]
[376993071,1754193042524,-460.0,0.00028084,10]
[376993073,1754193042533,-460.0,0.00028084,10]
[376993075,1754193042543,-460.0,0.00028084,10]
[376993077,1754193042552,-460.0,0.00028084,10]
[376993079,1754193042561,-460.0,0.00028084,10]
[376993081,1754193042570,-460.0,0.00028084,10]
[376993083,1754193042580,-460.0,0.00028084,10]
[376993086,1754193042590,-460.0,0.00028084,10]
[376993088,1754193042599,-460.0,0.00028084,10]
[376993090,1754193042608,-460.0,0.00028084,10]
[376993092,1754193042618,-460.0,0.00028084,10]
[376993094,1754193042627,-460.0,0.00028084,10]
[376993096,1754193042636,-460.0,0.00028084,10]
[376993098,1754193042646,-460.0,0.00028084,10]
[376993100,1754193042656,-460.0,0.00028084,10]
[376993102,1754193042665,-460.0,0.00028084,10]
[376993104,1754193042675,-385.11477807,0.00028084,10]
[376993106,1754193042685,-460.0,0.00028084,10]
[376993108,1754193042695,-460.0,0.00028084,10]
[376993110,1754193042704,-460.0,0.00028084,10]
[376993112,1754193042714,-460.0,0.00028084,10]
[376993114,1754193042723,-460.0,0.00028084,10]
[376993116,1754193042732,-460.0,0.00028084,10]
[376993118,1754193042742,-195.66768215,0.00028084,10]
[376993120,1754193042752,-1012.26,0.00028084,10]
[376993122,1754193042761,-1012.26,0.00028084,10]
[376993124,1754193042771,-1012.26,0.00028084,10]
[376993126,1754193042780,-1012.26,0.00028084,10]
[376993128,1754193042790,-1012.26,0.00028084,10]
[376993130,1754193042800,-1012.26,0.00028084,10]
[376993132,1754193042810,-1012.26,0.00028084,10]
[376993133,1754193042819,-1012.26,0.00028084,10]
[376993135,1754193042829,-1012.26,0.00028084,10]
[376993137,1754193042838,-1012.26,0.00028084,10]
[376993139,1754193042848,-351.33191898,0.00028084,10]
[376993142,1754193042862,-660.92808102,0.00028084,10]
[376993144,1754193042871,-670.49354454,0.00028084,10]
[376993146,1754193042883,-341.76645546,0.00028084,10]
[376993148,1754193042892,-1012.26,0.00028084,10]
[376993150,1754193042902,-1012.26,0.00028084,10]
[376993152,1754193042912,-1012.26,0.00028084,10]
[376993154,1754193042921,-186.75592516,0.00028084,10]
[376993156,1754193042933,-825.50407484,0.00028084,10]
[376993158,1754193042943,-823.26368875,0.00028084,10]
[376993162,1754193042975,-460.0,0.00027945,10]
[376993164,1754193042985,-460.0,0.00027945,10]
[376993166,1754193042995,-460.0,0.00027982,10]
[376993168,1754193043004,-188.99631125,0.00028084,10]
[376993170,1754193043014,-1012.42,0.00028084,10]
[376993172,1754193043023,-895.77250754,0.00028084,7]
[376993174,1754193043033,-460.0,0.00028084,10]
[376993176,1754193043042,-460.0,0.00028084,10]
[376993178,1754193043052,-460.0,0.00028084,10]
[376993180,1754193043061,-460.0,0.00028084,10]
[376993182,1754193043070,-460.0,0.00028084,10]
[376993184,1754193043080,-460.0,0.00028084,10]
[376993186,1754193043089,-460.0,0.00028084,10]
[376993188,1754193043099,-460.0,0.00028084,10]
[376993190,1754193043110,-346.96,0.00028084,10]
[376993192,1754193043119,-460.0,0.00028084,10]
[376993194,1754193043129,-460.0,0.00028084,10]
[376993196,1754193043138,-460.0,0.00028084,10]
[376993198,1754193043148,-471.14,0.00028084,10]
[376993200,1754193043158,-460.0,0.00028084,10]
[376993202,1754193043167,-460.0,0.00028084,10]
[376993204,1754193043176,-536.92,0.00028084,10]
[376993207,1754193043186,-161.22196781,0.00028086,5]
[376993209,1754193043195,-861.07,0.00028086,10]
[376993211,1754193043205,-861.07,0.00028086,10]
[376993213,1754193043214,-861.07,0.00028086,10]
[376993215,1754193043223,-861.07,0.00028086,10]
[376993217,1754193043233,-861.15054947,0.00028086,10]
[376993219,1754193043242,-460.0,0.00028087,10]
[376993221,1754193043252,-378.48,0.00028087,10]
[376993222,1754193043261,-655.2,0.00028087,10]
[376993224,1754193043270,-655.2,0.00028087,10]
[376993226,1754193043280,-655.2,0.00028087,10]
[376993228,1754193043289,-655.2,0.00028087,10]
[376993230,1754193043299,-655.2,0.00028087,10]
[376993232,1754193043309,-655.2,0.00028087,10]
[376993234,1754193043319,-655.2,0.00028087,10]
[376993236,1754193043328,-655.2,0.00028087,10]
[376993238,1754193043338,-655.2,0.00028087,10]
[376993240,1754193043348,-655.2,0.00028087,10]
[376993242,1754193043358,-655.2,0.00028087,10]
[376993244,1754193043367,-655.2,0.00028087,10]
[376993246,1754193043376,-655.2,0.00028087,10]
[376993248,1754193043388,-655.28,0.00028087,10]
[376993250,1754193043399,-500.0,0.00028087,10]
[376993252,1754193043408,-500.0,0.00028087,10]
[376993254,1754193043418,-500.0,0.00028087,10]
[376993256,1754193043428,-500.0,0.00028087,10]
[376993258,1754193043438,-500.0,0.00028087,10]
[376993260,1754193043447,-500.0,0.00028087,10]
[376993262,1754193043456,-500.0,0.00028087,10]
[376993264,1754193043466,-500.0,0.00028087,10]
[376993266,1754193043475,-500.0,0.00028087,10]
[376993268,1754193043484,-500.0,0.00028087,10]
[376993270,1754193043493,-500.0,0.00028087,10]
[376993272,1754193043503,-500.0,0.00028087,10]
[376993273,1754193043517,-181.84,0.00028087,10]
[376993275,1754193043526,-460.0,0.00028087,10]
[376993277,1754193043536,-460.0,0.00028087,10]
[376993279,1754193043546,-487.96,0.00028087,10]
[376993281,1754193043556,-460.0,0.00028087,10]
[376993283,1754193043567,-460.0,0.00028087,10]
[376993285,1754193043580,-460.0,0.00028087,10]
[376993287,1754193043600,-460.0,0.00028087,10]
[376993289,1754193043613,-564.6,0.00028087,10]
[376993291,1754193043622,-460.0,0.00028087,10]
[376993293,1754193043632,-460.0,0.00028087,10]
[376993295,1754193043641,-460.0,0.00028087,10]
[376993297,1754193043651,-460.0,0.00028087,10]
[376993299,1754193043660,-460.0,0.00028087,10]
[376993301,1754193043670,-460.0,0.00028087,10]
[376993303,1754193043679,-460.0,0.00028087,10]
[376993305,1754193043689,-460.0,0.00028087,10]
[376993307,1754193043698,-460.0,0.00028087,10]
[376993309,1754193043709,-460.0,0.00028087,10]
[376993311,1754193043718,-460.0,0.00028087,10]
[376993313,1754193043727,-553.18189984,0.00028087,10]
[376993315,1754193043737,-460.0,0.00028087,10]
[376993317,1754193043746,-460.0,0.00028087,10]
[376993319,1754193043755,-460.0,0.00028087,10]
[376993321,1754193043764,-460.0,0.00028087,10]
[376993323,1754193043773,-171.2766458,0.00028087,10]
[376993325,1754193043782,-460.0,0.00028087,10]
[376993327,1754193043792,-460.0,0.00028087,10]
[376993328,1754193043801,-527.5697204,0.00028087,10]
[376993330,1754193043811,-460.0,0.00028087,10]
[376993332,1754193043820,-460.0,0.00028087,10]
[376993334,1754193043830,-460.0,0.00028087,10]
[376993336,1754193043840,-520.4,0.00028087,10]
[376993338,1754193043849,-200.0,0.00028088,120]
[376993340,1754193043858,-151.0,0.00028088,7]
[376993342,1754193043867,-151.0,0.00028088,7]
[376993344,1754193043877,-151.0,0.00028088,7]
[376993346,1754193043887,-151.0,0.00028088,7]
[376993348,1754193043896,-151.0,0.00028088,7]
[376993360,1754193044002,-151.0,0.00028088,7]
[376993362,1754193044013,-151.0,0.00028088,7]
[376993364,1754193044023,-151.0,0.00028088,7]
[376993366,1754193044033,-151.0,0.00028088,7]
[376993368,1754193044042,-151.0,0.00028088,7]
[376993370,1754193044051,-160.883335,0.00028088,7]
[376993372,1754193044061,-151.0,0.00028088,7]
[376993374,1754193044070,-151.0,0.00028088,7]
[376993376,1754193044080,-215.815168,0.00028088,7]
[376993378,1754193044089,-152.102452,0.00028088,7]
[376993379,1754193044098,-11941.3051811,0.0002809,2]
[376993381,1754193044108,-2175.0,0.0002809,30]
[376993384,1754193044120,-12256.76079195,0.00028094,20]
[376995903,1754193232844,163.174182,0.00013699,2]
[376995904,1754193233078,163.174182,0.00022505,2]
[376995907,1754193580497,-432.81152934,0.00024258,2]
[376995912,1754193944141,-1104.80099066,0.00024015,2]
[376995913,1754193944164,-160.0,0.00024015,2]
[376995914,1754193944186,-325.03518512,0.00024258,2]
[376995915,1754194011184,-189.19951382,0.00024015,2]
[376995916,1754194047097,-1510.28385487,0.00024015,2]
[376995917,1754194047326,-155.18703581,0.00024258,2]
[376995942,1754194232331,-19.77777907,0.00024258,2]
[376995944,1754194232341,-159.40986,0.00026312,10]
[376995946,1754194232352,-500.0,0.0002645,2]
[376995948,1754194232361,-170.0816215,0.00027247,2]
[376995950,1754194232371,-196.76839656,0.00027397,2]
[376995952,1754194232380,-500.0,0.00027397,5]
[376995954,1754194232390,-407.0,0.0002755,2]
[376995956,1754194232400,-565.47,0.000277,2]
[376995958,1754194232409,-200.952,0.00027944,18]
[376995960,1754194232419,-300.0,0.00027944,2]
[376995962,1754194232428,-460.0,0.00027945,10]
[376995964,1754194232437,-372.81210753,0.00027945,10]
[376995966,1754194232447,-460.0,0.00027945,10]
[376995968,1754194232456,-460.0,0.00027945,10]
[376995970,1754194232467,-299.80225515,0.00027945,10]
[376995972,1754194232477,-460.0,0.00027945,10]
[376995974,1754194232487,-460.0,0.00027945,10]
[376995976,1754194232497,-460.0,0.00027945,10]
[376995978,1754194232508,-460.0,0.00027945,10]
[376995980,1754194232518,-460.0,0.00027945,10]
[376995982,1754194232528,-460.0,0.00027945,10]
[376995984,1754194232538,-460.0,0.00027945,10]
[376995986,1754194232548,-460.0,0.00027945,10]
[376995988,1754194232557,-460.0,0.00027945,10]
[376995990,1754194232567,-460.0,0.00027945,10]
[376995992,1754194232577,-460.0,0.00027945,10]
[376995994,1754194232587,-460.0,0.00027945,10]
[376995996,1754194232596,-460.0,0.00027945,10]
[376995998,1754194232606,-460.0,0.00027945,10]
[376995999,1754194232615,-460.0,0.00027945,10]
[376996001,1754194232624,-460.0,0.00027945,10]
[376996003,1754194232634,-460.0,0.00027945,10]
[376996005,1754194232643,-460.0,0.00027945,10]
[376996007,1754194232652,-460.0,0.00027945,10]
[376996009,1754194232662,-460.0,0.00027945,10]
[376996011,1754194232672,-288.52,0.00027945,10]
[376996013,1754194232681,-460.0,0.00027945,10]
[376996015,1754194232691,-460.0,0.00027945,10]
[376996017,1754194232700,-460.0,0.00027945,10]
[376996019,1754194232711,-460.0,0.00027945,10]
[376996021,1754194232721,-460.0,0.00027945,10]
[376996023,1754194232730,-460.0,0.00027945,10]
[376996025,1754194232739,-460.0,0.00027945,10]
[376996027,1754194232748,-460.0,0.00027945,10]
[376996029,1754194232758,-460.0,0.00027945,10]
[376996031,1754194232769,-460.0,0.00027945,10]
[376996033,1754194232778,-460.0,0.00027945,10]
[376996035,1754194232788,-412.34,0.00027945,10]
[376996037,1754194232798,-460.0,0.00027945,10]
[376996039,1754194232807,-460.0,0.00027945,10]
[376996041,1754194232816,-460.0,0.00027945,10]
[376996043,1754194232827,-460.0,0.00027945,10]
[376996045,1754194232837,-460.0,0.00027945,10]
[376996046,1754194232846,-460.0,0.00027945,10]
[376996048,1754194232855,-460.0,0.00027945,10]
[376996050,1754194232865,-189.12819331,0.00027945,10]
[376996052,1754194232874,-584.3103919,0.00027945,10]
[376996054,1754194232883,-460.0,0.00027945,10]
[376996056,1754194232893,-460.0,0.00027945,10]
[376996058,1754194232903,-460.0,0.00027945,10]
[376996060,1754194232921,-512.84,0.00027945,10]
[376996062,1754194232937,-460.0,0.00027945,10]
[376996064,1754194232947,-460.0,0.00027945,10]
[376996066,1754194232957,-460.0,0.00027945,10]
[376996068,1754194232968,-460.0,0.00027945,10]
[376996070,1754194232977,-460.0,0.00027945,10]
[376996072,1754194232987,-460.0,0.00027945,10]
[376996074,1754194232996,-460.0,0.00027945,10]
[376996076,1754194233006,-460.0,0.00027945,10]
[376996078,1754194233016,-460.0,0.00027945,10]
[376996080,1754194233026,-460.0,0.00027945,10]
[376996082,1754194233038,-460.0,0.00027945,10]
[376996084,1754194233048,-460.0,0.00027945,10]
[376996086,1754194233058,-555.76,0.00027945,10]
[376996087,1754194233068,-460.0,0.00027945,10]
[376996089,1754194233078,-460.0,0.00027945,10]
[376996091,1754194233087,-500.0,0.00027945,10]
[376996093,1754194233097,-500.0,0.00027945,10]
[376996095,1754194233106,-500.0,0.00027945,10]
[376996097,1754194233117,-460.0,0.00027945,10]
[376996099,1754194233127,-460.0,0.00027945,10]
[376996101,1754194233137,-460.0,0.00027945,10]
[376996103,1754194233150,-460.0,0.00027945,10]
[376996105,1754194233159,-460.0,0.00027945,10]
[376996107,1754194233169,-460.0,0.00027945,10]
[376996109,1754194233181,-460.0,0.00027945,10]
[376996111,1754194233191,-460.0,0.00027945,10]
[376996113,1754194233202,-460.0,0.00027945,10]
[376996115,1754194233211,-460.0,0.00027945,10]
[376996117,1754194233221,-460.0,0.00027945,10]
[376996119,1754194233231,-460.0,0.00027945,10]
[376996121,1754194233242,-460.0,0.00027945,10]
[376996123,1754194233252,-460.0,0.00027945,10]
[376996125,1754194233263,-460.0,0.00027945,10]
[376996127,1754194233272,-460.0,0.00027945,10]
[376996128,1754194233283,-460.0,0.00027945,10]
[376996130,1754194233293,-460.0,0.00027945,10]
[376996132,1754194233303,-1005.74,0.00027945,10]
[376996134,1754194233313,-1005.74,0.00027945,10]
[376996136,1754194233322,-460.0,0.00027945,10]
[376996138,1754194233332,-540.97959075,0.00027945,10]
[376996140,1754194233342,-460.0,0.00027945,10]
[376996142,1754194233351,-416.53985606,0.00027945,10]
[376996144,1754194233362,-460.0,0.00027945,10]
[376996146,1754194233371,-460.0,0.00027945,10]
[376996148,1754194233381,-460.0,0.00027945,10]
[376996150,1754194233391,-460.0,0.00027945,10]
[376996152,1754194233401,-536.75340507,0.00027945,10]
[376996154,1754194233411,-460.0,0.00027945,10]
[376996155,1754194233421,-460.0,0.00027945,10]
[376996157,1754194233431,-460.0,0.00027945,10]
[376996159,1754194233441,-460.0,0.00027945,10]
[376996161,1754194233451,-460.0,0.00027945,10]
[376996163,1754194233460,-460.0,0.00027945,10]
[376996165,1754194233469,-460.0,0.00027945,10]
[376996166,1754194233479,-460.0,0.00027945,10]
[376996167,1754194233488,-460.0,0.00027945,10]
[376996168,1754194233499,-460.0,0.00027945,10]
[376996169,1754194233508,-460.0,0.00027945,10]
[376996170,1754194233518,-460.0,0.00027945,10]
[376996171,1754194233527,-460.0,0.00027945,10]
[376996172,1754194233536,-460.0,0.00027945,10]
[376996173,1754194233546,-460.0,0.00027945,10]
[376996174,1754194233556,-460.0,0.00027945,10]
[376996175,1754194233565,-460.0,0.00027945,10]
[376996176,1754194233575,-460.0,0.00027945,10]
[376996178,1754194233584,-460.0,0.00027945,10]
[376996180,1754194233593,-460.0,0.00027945,10]
[376996182,1754194233602,-460.0,0.00027945,10]
[376996184,1754194233612,-460.0,0.00027945,10]
[376996186,1754194233621,-460.0,0.00027945,10]
[376996188,1754194233631,-460.0,0.00027945,10]
[376996190,1754194233640,-460.0,0.00027945,10]
[376996192,1754194233649,-460.0,0.00027945,10]
[376996193,1754194233658,-460.0,0.00027945,10]
[376996196,1754194233668,-460.0,0.00027945,10]
[376996197,1754194233677,-460.0,0.00027945,10]
[376996199,1754194233687,-460.0,0.00027945,10]
[376996201,1754194233696,-460.0,0.00027945,10]
[376996203,1754194233705,-460.0,0.00027945,10]
[376996205,1754194233715,-460.0,0.00027945,10]
[376996207,1754194233724,-460.0,0.00027945,10]
[376996209,1754194233733,-460.0,0.00027945,10]
[376996211,1754194233743,-460.0,0.00027945,10]
[376996213,1754194233753,-460.0,0.00027945,10]
[376996215,1754194233762,-460.0,0.00027945,10]
[376996217,1754194233771,-573.63,0.00027945,10]
[376996218,1754194233780,-573.63,0.00027945,10]
[376996219,1754194233791,-573.63,0.00027945,10]
[376996220,1754194233800,-460.0,0.00027971,10]
[376996221,1754194233811,-460.0,0.00027971,10]
[376996222,1754194233820,-460.0,0.00027971,10]
[376996223,1754194233830,-460.0,0.00027971,10]
[376996224,1754194233840,-274.71753272,0.00027971,10]
[376996255,1754194238154,-185.28246728,0.00027971,10]
[376996257,1754194238164,-460.0,0.00027971,10]
[376996259,1754194238176,-460.0,0.00027971,10]
[376996261,1754194238186,-460.0,0.00027971,10]
[376996263,1754194238196,-253.21120198,0.00027971,10]
[376996265,1754194238207,-206.78879802,0.00027971,10]
[376996267,1754194238218,-518.56,0.00027971,10]
[376996269,1754194238227,-313.05837478,0.00027972,10]
[376996271,1754194238239,-692.68162522,0.00027972,10]
[376996273,1754194238251,-460.0,0.00027972,10]
[376996276,1754194238261,-502.05326185,0.00027973,5]
[376996278,1754194238270,-500.77657956,0.00027973,5]
[376996279,1754194238280,-164.13210546,0.00027973,5]
[376996282,1754194238292,-335.86789454,0.00027973,5]
[376996284,1754194238302,-500.0,0.00027973,5]
[376996286,1754194238312,-21.94208546,0.00027973,5]
[376996288,1754194238323,-479.14389895,0.00027973,5]
[376996290,1754194238333,-500.86639372,0.00027973,2]
[376996292,1754194238342,-500.0,0.00027973,5]
[376996294,1754194238351,-500.0,0.00027973,5]
[376996297,1754194238371,-600.22586032,0.00027973,5]
[376996299,1754194238383,-460.0,0.00027973,10]
[376996301,1754194238392,-327.67910832,0.00027973,10]
[376996304,1754194238405,-132.32089168,0.00027973,10]
[376996306,1754194238415,-202.46,0.00027973,10]
[376996308,1754194238424,-197.33,0.00027973,10]
[376996310,1754194238433,-155.54437735,0.0002799,2]
[376996312,1754194238443,-38.71181033,0.00027993,10]
[376996348,1754194240416,-124.68818967,0.00027993,10]
[376996350,1754194240427,-460.0,0.00027993,10]
[376996367,1754194240581,-143.73762936,0.00027993,10]
[376996370,1754194240594,-316.26237064,0.00027993,10]
[376996372,1754194240604,-573.63,0.00027993,10]
[376996373,1754194240614,-5056.19704909,0.00027994,2]
[376996375,1754194240623,-4536.94574835,0.00027994,2]
[376996376,1754194240632,-473.87565947,0.00027998,10]
[376996377,1754194240643,-26.12434053,0.00027998,10]
[376996378,1754194240653,-581.99,0.00027998,10]
[376996379,1754194240663,-460.0,0.00027998,10]
[376996380,1754194240672,-460.0,0.00027998,10]
[376996381,1754194240681,-460.0,0.00027998,10]
[376996382,1754194240691,-460.0,0.00027998,10]
[376996383,1754194240700,-460.0,0.00027999,10]
[376996384,1754194240709,-460.0,0.00027999,10]
[376996385,1754194240718,-460.0,0.00027999,10]
[376996386,1754194240727,-460.0,0.00027999,10]
[376996387,1754194240737,-460.0,0.00027999,10]
[376996388,1754194240746,-1005.74,0.00027999,10]
[376996389,1754194240755,-468.36,0.00027999,10]
[376996390,1754194240764,-460.0,0.00027999,10]
[376996391,1754194240774,-460.0,0.00027999,10]
[376996392,1754194240784,-460.0,0.00027999,10]
[376996393,1754194240798,-460.0,0.00027999,10]
[376996394,1754194240807,-1609.7001795,0.00028,2]
[376996395,1754194240820,-8735.1798205,0.00028,2]
[376996396,1754194240831,-246.68581088,0.00028022,7]
[376996397,1754194240840,-247.00174371,0.00028022,7]
[376996398,1754194240850,-500.0,0.00028022,2]
[376996399,1754194240860,-500.0,0.00028022,2]
[376996400,1754194240871,-2761.83,0.00028052,2]
[376996401,1754194240880,-460.0,0.00028052,10]
[376996402,1754194240889,-554.72,0.00028052,10]
[376996403,1754194240901,-573.63,0.00028052,10]
[376996404,1754194240910,-5531.70783105,0.00028057,2]
[376996428,1754194243362,-460.0,0.00027945,10]
[376996429,1754194243372,-460.0,0.00027945,10]
[376996430,1754194243382,-460.0,0.00027972,10]
[376996431,1754194243391,-460.0,0.00027999,10]
[376996432,1754194243401,-515.53081316,0.00028057,2]
[376996433,1754194243410,-500.0,0.00028067,10]
[376996435,1754194243420,-324.1,0.00028067,10]
[376996436,1754194243430,-460.0,0.00028067,10]
[376996437,1754194243440,-460.0,0.00028067,10]
[376996438,1754194243451,-460.0,0.00028067,10]
[376996439,1754194243463,-460.0,0.0002807,10]
[376996440,1754194243472,-460.0,0.0002807,10]
[376996441,1754194243482,-460.0,0.0002807,10]
[376996442,1754194243493,-194.4586279,0.0002807,10]
[376996443,1754194243502,-460.0,0.0002807,10]
[376996444,1754194243513,-460.0,0.0002807,10]
[376996445,1754194243523,-460.0,0.0002807,10]
[376996446,1754194243535,-460.0,0.0002807,10]
[376996447,1754194243544,-166.56,0.00028071,10]
[376996448,1754194243554,-156.13567663,0.00028071,2]
[376996449,1754194243563,-460.0,0.00028071,10]
[376996450,1754194243574,-1005.74,0.00028071,10]
[376996451,1754194243584,-460.0,0.00028071,10]
[376996452,1754194243596,-20.52284875,0.00028071,10]
[376996453,1754194243609,-439.47715125,0.00028071,10]
[376996454,1754194243620,-460.0,0.00028072,10]
[376996455,1754194243629,-103.0124301,0.00028072,10]
[376996456,1754194246331,-356.9875699,0.00028072,10]
[376996457,1754194246341,-460.0,0.00028072,10]
[376996458,1754194246352,-460.0,0.00028072,10]
[376996459,1754194246362,-113.53420877,0.00028072,10]
[376996460,1754194246384,-346.46579123,0.00028072,10]
[376996461,1754194246395,-242.32,0.00028072,10]
[376996462,1754194246405,-143.37177366,0.00028072,10]
[376996464,1754194406195,161.440763,0.00013699,2]
[376996465,1754194406404,161.440763,0.00021918,2]
[376996468,1754195022057,10000.0,0.00028109,60]
[376996469,1754195043330,10000.0,0.00028109,60]
[376996470,1754195061701,7668.0,0.00028109,60]
[376996475,1754195131088,-1594.81834123,0.00023537,2]
[376996479,1754195209090,-183.23235641,0.00023563,2]
[376996480,1754195232084,-58.39101534,0.00023563,2]
[376996481,1754195232106,-1499.44728612,0.00023801,2]
[376996484,1754195300505,2219.96348109,0.00023061,2]
[376996485,1754195314439,167.301473,0.00013699,2]
[376996486,1754195314835,167.301473,0.00022505,2]
[376996488,1754195318646,412.00266534,0.00019,20]
[376996489,1754195319794,1054.64656112,0.00021739,2]
[376996491,1754195326927,188.48390208,0.00019,20]
[376996533,1754195432464,-288.2,0.00023279,2]
[376996535,1754195432474,-224.62,0.00023749,2]
[376996537,1754195432483,-4250.45853958,0.0002376,2]
[376996539,1754195432493,-500.0,0.00024258,2]
[376996540,1754195432504,-224.62,0.00024477,2]
[376996541,1754195432514,-224.62,0.00025206,7]
[376996543,1754195432524,-224.62,0.00025934,7]
[376996545,1754195432533,-230.72,0.0002594,2]
[376996546,1754195432543,-300.0,0.00025999,2]
[376996548,1754195432555,-300.0,0.00025999,2]
[376996550,1754195432565,-857.0,0.00025999,2]
[376996552,1754195432575,-20327.54852497,0.00026,30]
[376996554,1754195432587,-7059.32479954,0.00026,30]
[376996556,1754195432600,-84880.25367496,0.00026,30]
[376996557,1754195432609,-525.7591076,0.00026303,2]
[376996559,1754195432619,-500.0,0.0002645,2]
[376996561,1754195432629,-224.62,0.00026662,7]
[376996563,1754195432639,-860.2785724,0.00027151,2]
[376996565,1754195432648,-356.7396016,0.00027288,2]
[376996566,1754195432657,-587.9427917,0.00027288,2]
[376996567,1754195432677,-200.0,0.00027299,15]
[376996568,1754195432688,-300.0,0.00027299,15]
[376996569,1754195432698,-224.62,0.00027397,7]